Cogmind - Beta 12 @@@ ROGUE MODE // 2023.11.09 @ 07:22:44 Player: Ev Result: Self-destructed Performance ------------- Evolutions (1) 500 Regions Visited (2) 400 Robots Destroyed (19) 95 Value Destroyed (466) 466 Prototype IDs (2) 40 Alien Tech Used (0) 0 Bonus (0) 0 TOTAL SCORE: 1501 Bonus ------- None Cogmind --------- Core Integrity 234/400 Matter 219/300 Energy 42/100 System Corruption 0% Temperature Warning (333) Movement Core (50) Location -9/Materials Parts ------- > --- POWER (1) -------- (None) > --- PROPULSION (2) --- (None) > --- UTILITY (4) ------ Weight Redist. System Structural Scanner Sensor Array Signal Interpreter > --- WEAPON (2) ------- Light Assault Rifle > --- INVENTORY (5) ---- Small Storage Unit ECM Suite Peak State ------------ > --- POWER ------------ Ion Engine > --- PROPULSION ------- VTOL Module VTOL Module > --- UTILITY ---------- Weight Redist. System Structural Scanner Sensor Array Signal Interpreter > --- WEAPON ----------- Medium Laser Light Assault Rifle > --- INVENTORY -------- Small Storage Unit [Rating: 12] Favorites ----------- Power Ion Engine Engine Ion Engine Propulsion Aluminum Leg Leg Aluminum Leg Wheel Wheel Flight Unit VTOL Module Utility Signal Interpreter Device Heat Sink Storage Small Storage Unit Processor Signal Interpreter Weapon Medium Laser Energy Gun Medium Laser Ballistic Gun Light Assault Rifle Build | -11 -10 -9 ------- Run | Jun Mat Mat Slots Evolved 2 | . . 2 Power . | . . . Propulsion . | . . . Utility 2 | . . 2 Weapon . | . . . Parts Attached 20 | 6 12 2 Power 2 | 1 1 . Engine 2 | 1 1 . Core . | . . . Reactor . | . . . Propulsion 8 | 2 6 . Treads . | . . . Leg 3 | . 3 . Wheel 3 | 2 1 . Hover . | . . . Flight 2 | . 2 . Utility 7 | 1 4 2 Device 5 | . 3 2 Storage 1 | 1 . . Processor 1 | . 1 . Hackware . | . . . Protection . | . . . Artifact . | . . . Weapon 3 | 2 1 . Energy Gun 2 | 2 . . Energy Cannon . | . . . Ballistic Gun 1 | . 1 . Ballistic Cannon . | . . . Launcher . | . . . Special Weapon . | . . . Impact Weapon . | . . . Slashing Weapon . | . . . Piercing Weapon . | . . . Special Melee Weapon . | . . . Unidentified Prototypes . | . . . Parts Lost 5 | . 1 4 Power 1 | . . 1 Propulsion 2 | . . 2 Utility . | . . . Weapon 2 | . 1 1 Highest Loss Streak 4 | . 1 4 To Critical Strikes . | . . . Average Slot Usage (%) 97 | . 98 90 Engine 13 | . 14 9 Leg 14 | . 17 . Wheel 8 | . 10 . Flight 2 | . . 16 Device 16 | . 13 33 Processor 12 | . 12 11 Energy Gun 23 | . 26 10 Ballistic Gun 2 | . 1 11 Naked Turns . | . . . Heaviest Build 15 | 14 15 10 Greatest Support 20 | 20 20 14 Greatest Overweight (x) 2 | . 2 . Average Overweight (x) . | . . . Largest Inventory Capacity 8 | 8 8 5 Average Capacity 5 | 6 5 5 Most Carried 4 | 1 4 2 Average Carried 1 | . 1 1 Final Capacity 8 | 8 5 5 Final Carried 3 | . 3 2 Class Distribution -------------------- 84% | Mutant 15% | Scout Dominant Class ---------------- Mutant | -10/Materials Scout | -9/Materials Resources | -11 -10 -9 ----------- Run | Jun Mat Mat Matter Collected 399 | 211 129 59 Remotely . | . . . Salvage Created 629 | . 444 185 Parts 36 | . 28 8 Haulers Intercepted 1 | . 1 . Recyclers Shooed . | . . . Parts Field Recycled . | . . . Retrieved Matter . | . . . Parts Self-Destructed . | . . . Prevented . | . . . Kills | -11 -10 -9 ------- Run | Jun Mat Mat Combat Hostiles Destroyed 15 | . 11 4 Guns 15 | . 11 4 Classes Destroyed 7 | . 5 2 Hauler 1 | . 1 . Operator 1 | . 1 . Watcher 2 | . 2 . Swarmer 5 | . 5 . Grunt 8 | . 6 2 Brawler 1 | . . 1 Sentry 1 | . . 1 Best Kill Streak 3 | . 3 2 Combat Bots Only 3 | . 3 2 Max Kills in Single Turn 1 | . 1 1 Gunslinging . | . . . Exploded . | . . . Melee . | . . . Uniques/NPCs Destroyed . | . . . Combat | -11 -10 -9 -------- Run | Jun Mat Mat Damage Taken 911 | . 501 410 Core 287 | . 121 166 Absorbed by Shields . | . . . Core Remaining (%) 75 | 100 51 . Volleys Fired 84 | . 60 24 Largest 2 | . 2 2 Hottest 100 | . 100 70 Shots Fired 155 | . 107 48 Gun 155 | . 107 48 Cannon . | . . . Launcher . | . . . Special . | . . . Kinetic 24 | . . 24 Thermal 131 | . 107 24 Explosive . | . . . Electromagnetic . | . . . Robot Hit Streak 10 | . 10 5 Robot Miss Streak 6 | . 6 3 Penetration Max . | . . . Secondary Targets 4 | . 2 2 Max Gunslinging Chain 1 | . 1 1 Shots Hit Robots 87 | . 58 29 Core Hits 38 | . 27 11 Critical Kills . | . . . Critical Parts Destroyed . | . . . Critical Strikes 4 | . 4 . Burn 4 | . 4 . Melee Attacks . | . . . Impact . | . . . Slashing . | . . . Piercing . | . . . Sneak Attacks . | . . . Combat Hostiles . | . . . Follow-up Attacks . | . . . Damage Inflicted 1070 | . 762 308 Guns 1070 | . 762 308 Cannons . | . . . Explosions . | . . . Melee . | . . . Ramming . | . . . Kinetic 136 | . . 136 Thermal 934 | . 762 172 Explosive . | . . . Electromagnetic . | . . . Impact . | . . . Slashing . | . . . Piercing . | . . . Highest Corruption . | . . . Average Corruption . | . . . Corruption Purged . | . . . Corruption Blocked . | . . . Overload Shots . | . . . Overflow Damage . | . . . Projectiles . | . . . Explosions . | . . . Melee . | . . . Knockbacks . | . . . Impact . | . . . Kinetic . | . . . Secondary . | . . . Self-Inflicted Damage . | . . . Shots . | . . . Rammed . | . . . Targets Rammed . | . . . Kicked . | . . . Crushed . | . . . Highest Temperature 389 | . 181 389 Average Temperature 100 | . 58 208 Received Heat Transfer 399 | . 192 207 Effects 3 | . . 3 Energy Bleed 1 | . . 1 Matter Decay 2 | . . 2 Siege Activations . | . . . Robots Corrupted . | . . . Combat Hostiles . | . . . Parts Fried . | . . . Impact Corruptions . | . . . Robots Melted . | . . . Combat Hostiles . | . . . Parts Melted 4 | . 2 2 Heat Transferred 3071 | . 2553 518 Parts Sabotaged . | . . . Parts Stolen . | . . . Parts Stripped . | . . . Power Chain Reactions . | . . . Missiles Intercepted . | . . . Alert | -11 -10 -9 ------- Run | Jun Mat Mat Peak Influence 294 | . 294 205 Initial 75 | . . 75 Average 125 | . 133 126 Maximum Alert Level 1 | . 1 1 Low Security (%) 77 | 100 72 99 Level 1 22 | . 27 . Level 2 . | . . . Level 3 . | . . . Level 4 . | . . . Level 5 . | . . . High Security . | . . . Max Security . | . . . Squads Dispatched 4 | . 2 2 Investigation . | . . . Extermination . | . . . Reinforcement 4 | . 2 2 Assault . | . . . Garrison . | . . . Intercept . | . . . Searches Triggered . | . . . Construction Impeded . | . . . Haulers Reinforced . | . . . Active Scanning Responses . | . . . Cargo Convoy Interrupts . | . . . Stealth | -11 -10 -9 --------- Run | Jun Mat Mat Distress Signals 3 | . 2 1 Communications Jammed . | . . . Distress Signals . | . . . Times Spotted 27 | . 19 8 Peak Tracking Total 6 | . 5 6 Tactical Retreats 3 | . 2 1 Traps | -11 -10 -9 ------- Run | Jun Mat Mat Traps Triggered . | . . . Indirectly . | . . . Trap Hack Attempts . | . . . Triggered . | . . . Disarmed . | . . . Reprogrammed . | . . . Reused . | . . . Traps Extracted . | . . . Installed . | . . . Triggered . | . . . Machines | -11 -10 -9 ---------- Run | Jun Mat Mat Machines Disabled . | . . . Max in Single Turn . | . . . Machines Repaired . | . . . Machines Sabotaged . | . . . Overloaded Fab Kills . | . . . Hacking | -11 -10 -9 --------- Run | Jun Mat Mat Machines Accessed 4 | . 4 . Terminals 3 | . 3 . Fabricators . | . . . Repair Stations 1 | . 1 . Recycling Units . | . . . Scanalyzers . | . . . Garrison Access . | . . . Total Hacks 11 | . 11 . Successful 6 | . 6 . Failed 5 | . 5 . Catastrophic . | . . . Database Lockouts . | . . . Manual . | . . . Terminals 9 | . 9 . Fabricators . | . . . Repair Stations 2 | . 2 . Recycling Units . | . . . Scanalyzers . | . . . Garrison Access . | . . . Terminal Hacks 5 | . 5 . Prototype ID Bank 1 | . 1 . Alert Level 1 | . 1 . Locate Traps 1 | . 1 . Registered Components 1 | . 1 . Zone Layout 1 | . 1 . Fabricator Hacks . | . . . Repair Station Hacks 1 | . 1 . Scan Component 1 | . 1 . Recycling Unit Hacks . | . . . Scanalyzer . | . . . Garrison Access Hacks . | . . . Unauthorized Hacks . | . . . Terminals . | . . . Fabricators . | . . . Repair Stations . | . . . Recycling Units . | . . . Scanalyzers . | . . . Garrison Access . | . . . Data Cores Recovered . | . . . Used . | . . . Hacking Detections 4 | . 4 . Full Trace Events . | . . . Feedback Events . | . . . Feedback Blocked . | . . . Robot Schematics Acquired . | . . . Robots Built . | . . . Authchips . | . . . Time . | . . . Total Robot Build Rating . | . . . Part Schematics Acquired . | . . . Parts Built . | . . . Authchips . | . . . Time . | . . . Total Part Build Rating . | . . . Parts Repaired . | . . . Time . | . . . Parts Recycled . | . . . Recycled Matter . | . . . Retrieved Matter . | . . . Retrieved Components . | . . . Parts Scanalyzed . | . . . Part Schematics Acquired . | . . . Parts Damaged . | . . . Bothacking | -11 -10 -9 ------------ Run | Jun Mat Mat Used RIF Installer . | . . . Robots Hacked . | . . . Non-combat . | . . . Combat . | . . . Robot Hacks Applied . | . . . Relay Couplers Released . | . . . Fabnet Peak Effective % . | . . . Robots Rewired . | . . . Allies Hacked . | . . . Hacks Repelled . | . . . Allies | -11 -10 -9 -------- Run | Jun Mat Mat Total Allies . | . . . Largest Group . | . . . Highest-Rated Group . | . . . Highest-Rated Ally . | . . . Total Orders . | . . . Ally Attacks . | . . . Total Damage . | . . . Kills . | . . . Allies Corrupted . | . . . Allies Melted . | . . . Intel | -11 -10 -9 ------- Run | Jun Mat Mat Robot Analysis Total . | . . . Derelict Logs Recovered . | . . . Drone Launches . | . . . Drone Recoveries . | . . . Exploration | -11 -10 -9 ------------- Run | Jun Mat Mat Turns Passed 780 | 41 634 105 Spaces Moved 460 | 37 324 99 Core 2 | 1 . 1 Treads . | . . . Legs 195 | . 195 . Wheels 159 | 36 123 . Hover . | . . . Flight 104 | . 6 98 Fastest Speed 32 | 50 32 32 Average Speed 86 | 79 103 32 Slowest Speed 205 | 80 205 50 Overloaded Moves . | . . . Propulsion Burnouts . | . . . Robots Hopped 1 | . . 1 Cave-ins Triggered . | . . . Exploration Rate (%) 26 | 3 62 15 Regions Visited 2 Branch Regions . Pre-discovered Areas . | . . . Known Exits Taken 1 | . 1 . Unknown Exits Taken 1 | 1 . . Scrap Searched . | . . . Spaces Dug . | . . . Terrain Destroyed . | . . . Melee . | . . . Projectile . | . . . AOE . | . . . Terrain Rammed . | . . . Walls Destroyed . | . . . Machines Disabled . | . . . Actions | -11 -10 -9 --------- Run | Jun Mat Mat Total 688 | 48 513 127 Wait 99 | . 97 2 Move 456 | 36 323 97 Hop 1 | . . 1 Pick Up 20 | 6 13 1 Fast Attach . | . . . Attach 12 | 6 4 2 Detach . | . . . Swap 8 | . 8 . Drop 8 | . 8 . Fire 84 | . 60 24 Melee . | . . . Ram . | . . . Kick . | . . . Crush . | . . . Escape Stasis . | . . . Rewire . | . . . Trap . | . . . Miscellaneous . | . . . Route ------- -11/Junkyard -10/Materials (discovered 3 exits: *Mat x2 / [Min]) -9/Materials History --------- Turn | Location | Event 16 | -11/Junkyard | Discovered new exit (range 16) 42 | -11/Junkyard | Entered Materials 288 | -10/Materials | Discovered new exit (range 17) 318 | -10/Materials | Build established: Mutant 434 | -10/Materials | Discovered new exit (range 15) 649 | -10/Materials | Discovered new exit (range 10) 676 | -10/Materials | Identified exit to Materials 676 | -10/Materials | Entered another Materials area 676 | -9/Materials | Evolved 2 slots: Utility x2 781 | -9/Materials | Self-destructed Last Messages --------------- 00742_ K-01 Serf collects debris. 00743_ Overheating: Energy bleed (-27). 00745_ K-01 Serf collects debris. 00748_ R-06 Scavenger collects Aluminum Leg. 00750_ K-01 Serf collects debris. 00750_ K-01 Serf destroyed. 00751_ R-06 Scavenger collects Wheel. 00751_ ALERT: Hostiles spotted, dispatching reinforcements to Terminal M008. 00754_ R-06 Scavenger collects Lgt. Ion Engine. 00763_ Heat Sink melted. 00763_ G-34 Mercenary destroyed. 00764_ Overheating: Matter decay (-37). 00766_ Overheating: Matter decay (-39). 00767_ VTOL Module destroyed. 00768_ Ion Engine destroyed. 00773_ Critical hit (Burn: +37). 00777_ Imp. Ion Engine melted. 00777_ Y-45 Defender destroyed. 00778_ Med. Laser destroyed. Map ----- +----------------------------------------------------+ | | | ?????????????????????????????????????????????????? | | ?????????????????????????????????????????????????? | | ?????????????????????????????????????????????????? | | ?????????????????????????????????????????????????? | | ?????????????????????????????????????????????????? | | ?????????????????????????????????????????????????? | | ?????????????????????????????????????????????????? | | ?????????????????????????????????????????????????? | | ?????????????????????????????????????????????????? | | ?????????????????????????????????????????????????? | | ?????????????????????????????????????????????????? | | ??????????????????????? ?????????????????????? | | ??????????????????????? ?????????????????????? | | ??????????????????????# #????????????????????? | | ??????????????????????## ##????????????????????? | | ??????????????????????## ##????????????????????? | | ??????????????????????## ##????????????????????? | | ??????????????????????## ##????????????????????? | | ??????????????????????## ##????????????????????? | | ?????????????????????### ###???????????????????? | | ??????????? ? ######## ###???????????????????? | | ??????????? ####### a##???????????????????? | | ?????????? [ %=g ##???????????????????? | | ?????????? %! m==T ##???????????????????? | | ?????????? [%% !%@ ##???????????????????? | | ????????????????#######*/ = ##### ???????????????? | | ????????????????#########+####### ???????????????? | | ?????????????????????## # ???????????????? | | ?????????????????????## # ???????????????? | | ?????????????????????## # ???????????????? | | ?????????????????????## """ # ???????????????? | | ?????????????????????## """"" # ???????????????? | | ?????????????????????## """"" + ???????????????? | | ?????????????????????## """"" # ???????????????? | | ?????????????????????## """ # ???????????????? | | ?????????????????????##########+# ???????????????? | | ?????????????????????########## # ???????????????? | | ?????????????????????????????## ##???????????????? | | ?????????????????????????????## ##???????????????? | | ?????????????????????????????## ##???????????????? | | ?????????????????????????????## ##???????????????? | | ?????????????????????????????## ##???????????????? | | ?????????????????????????????## ##???????????????? | | ?????????????????????????????## ##???????????????? | | ?????????????????????????????## ##???????????????? | | ?????????????????????????????## ##???????????????? | | ?????????????????????????????## ##???????????????? | | ?????????????????????????????## ##???????????????? | | ?????????????????????????????## ##???????????????? | +----------------------------------------------------+ Best States ------------- Heat Dissipation 35 Energy Generation 10 Energy Capacity 250 Matter Stores 300 Matter Capacity 300 Sight Range 16 Robot Scan Range 14 Terrain Scan Density 10 Additional Mass Support 6 Evasion (%) 63 Item Schematics ----------------- None Robot Schematics ------------------ None Fabricated ------------ Nothing Alien Tech Used ----------------- None Achievements -------------- None Challenges ------------ None Game ------ Seed CentriumGuidedImmobilizer Manual? 0 Play Time 00:11:31 Cumulative 13.7 hours Start 2023.11.09 @ 07:12:10 End 2023.11.09 @ 07:22:44 Sessions 1 Manual Loads 0 Difficulty Rogue Special Mode None Game No. 36 Rogue 36 Adventurer 0 Explorer 0 Win Type - Total 0 Types 0/0/0/0/0/0/0/0/0 Lore% 6 Gallery% 17 Achievement% 11 Wizard Run 0 Options --------- ASCII 0 Keyboard 0 Movement Mouse Keybinds 0 Fullscreen 1 Font 24/Smallcaps Map View 76x50 Tactical HUD 1 Map Filters NONE Filters NONE Steam 1 RUN: 106cf68a-0c60-4969-a7fc-1a893be5a3ec